Cogmind - Beta 10.2 @@@ ROGUE MODE // 2021.03.09 @ 10:40:08 // Winter2019/RPGLIKE Player: Yanriel Result: Destroyed by G-34 Mercenary with Small Laser Performance ------------- Evolutions (0) 0 Regions Visited (1) 200 Robots Destroyed (10) 50 Value Destroyed (96) 96 Prototype IDs (0) 0 Alien Tech Used (0) 0 Bonus (0) 0 TOTAL SCORE: 346 Bonus ------- None Cogmind --------- Core Integrity 0/600 Matter 264/300 Energy 123/125 System Corruption 0% Temperature Cool (9) Movement Treading (160) Location -10/Materials Parts ------- > --- POWER (1) -------- Light Ion Engine > --- PROPULSION (1) --- Light Treads > --- UTILITY (4) ------ Improved Terrain Scanner Seismic Analyzer Seismic Analyzer Seismic Analyzer > --- WEAPON (1) ------- Light Cannon > --- INVENTORY (0) ---- (None) Peak State ------------ > --- POWER ------------ Light Ion Engine > --- PROPULSION ------- Wheel > --- UTILITY ---------- Improved Terrain Scanner Seismic Analyzer Seismic Analyzer Seismic Analyzer > --- WEAPON ----------- Medium Laser > --- INVENTORY -------- (None) [Rating: 8] Favorites ----------- Power Light Ion Engine Engine Light Ion Engine Propulsion Light Treads Treads Light Treads Wheel Wheel Utility Seismic Analyzer Device Improved Terrain Scanner Processor Seismic Analyzer Weapon Medium Laser Energy Gun Medium Laser Ballistic Gun Light Assault Rifle Ballistic Cannon Light Cannon Special Weapon Mining Laser Build | -11 -10 ------- Run | Scr Mat Slots Evolved 3 | 3 . Power . | . . Propulsion . | . . Utility 3 | 3 . Weapon . | . . Parts Attached 16 | 15 1 Power 2 | 2 . Engine 2 | 2 . Core . | . . Reactor . | . . Propulsion 3 | 3 . Treads 1 | 1 . Leg . | . . Wheel 2 | 2 . Hover . | . . Flight . | . . Utility 4 | 4 . Device 1 | 1 . Storage . | . . Processor 3 | 3 . Hackware . | . . Protection . | . . Artifact . | . . Weapon 7 | 6 1 Energy Gun 3 | 3 . Energy Cannon . | . . Ballistic Gun 1 | 1 . Ballistic Cannon 1 | . 1 Launcher . | . . Special Weapon 2 | 2 . Impact Weapon . | . . Slashing Weapon . | . . Piercing Weapon . | . . Special Melee Weapon . | . . Unidentified Prototypes . | . . Parts Lost . | . . Power . | . . Propulsion . | . . Utility . | . . Weapon . | . . Highest Loss Streak . | . . Average Slot Usage (%) 100 | . 100 Engine 14 | . 14 Treads 14 | . 14 Device 14 | . 14 Processor 42 | . 42 Energy Gun 5 | . 5 Ballistic Cannon 8 | . 8 Naked Turns . | . . Heaviest Build 7 | 6 7 Greatest Support 20 | 20 20 Greatest Overweight (x) . | . . Average Overweight (x) . | . . Largest Inventory Capacity . | . . Average Capacity . | . . Most Carried . | . . Average Carried . | . . Final Capacity . | . . Final Carried . | . . Class Distribution -------------------- 100% | Scavenger-Mutant Dominant Class ---------------- Scavenger-Mutant | -10/Materials Resources | -11 -10 ----------- Run | Scr Mat Matter Collected 414 | 360 54 Remotely . | . . Salvage Created 243 | 166 77 Parts 18 | 16 2 Haulers Intercepted . | . . Recyclers Shooed . | . . Parts Field Recycled . | . . Retrieved Matter . | . . Parts Self-Destructed . | . . Prevented . | . . Kills | -11 -10 ------- Run | Scr Mat Combat Hostiles Destroyed 1 | . 1 Cannons 1 | . 1 Classes Destroyed 3 | 1 2 Tunneler 8 | 8 . Recycler 1 | . 1 Grunt 1 | . 1 Best Kill Streak 2 | 2 2 Combat Bots Only 1 | . 1 Max Kills in Single Turn 1 | 1 1 Gunslinging . | . . Exploded . | . . Melee . | . . Uniques/NPCs Destroyed . | . . Combat | -11 -10 -------- Run | Scr Mat Damage Taken 727 | 532 195 Core 614 | 455 159 Absorbed by Shields . | . . Redirected to Core 389 | 280 109 Core Remaining (%) 24 | 24 . Volleys Fired 104 | 81 23 Largest 1 | 1 1 Hottest 100 | 100 50 Shots Fired 104 | 81 23 Gun 51 | 48 3 Cannon 20 | . 20 Launcher . | . . Special 33 | 33 . Kinetic 30 | 10 20 Thermal 74 | 71 3 Explosive . | . . Electromagnetic . | . . Robot Hit Streak 6 | 6 5 Robot Miss Streak 5 | 5 3 Penetration Max . | . . Secondary Targets . | . . Shots Hit Robots 40 | 26 14 Core Hits 16 | 13 3 Critical Hits . | . . Critical Kills . | . . Critical Parts Destroyed . | . . Melee Attacks . | . . Impact . | . . Slashing . | . . Piercing . | . . Sneak Attacks . | . . Combat Hostiles . | . . Follow-up Attacks . | . . Damage Inflicted 580 | 326 254 Guns 338 | 326 12 Cannons 242 | . 242 Explosions . | . . Melee . | . . Ramming . | . . Kinetic 318 | 76 242 Thermal 262 | 250 12 Explosive . | . . Electromagnetic . | . . Impact . | . . Slashing . | . . Piercing . | . . Highest Corruption . | . . Average Corruption . | . . Corruption Purged . | . . Overload Shots . | . . Overflow Damage . | . . Projectiles . | . . Explosions . | . . Melee . | . . Knockbacks 3 | . 3 Impact . | . . Kinetic 3 | . 3 Secondary . | . . Self-Inflicted Damage . | . . Shots . | . . Rammed . | . . Targets Rammed . | . . Kicked . | . . Crushed . | . . Highest Temperature 120 | 120 30 Average Temperature 33 | 35 7 Received Heat Transfer 108 | . 108 Siege Activations . | . . Robots Corrupted . | . . Combat Hostiles . | . . Parts Fried . | . . Impact Corruptions . | . . Robots Melted . | . . Combat Hostiles . | . . Parts Melted 3 | 3 . Heat Transferred 777 | 740 37 Parts Sabotaged . | . . Parts Stolen . | . . Parts Stripped . | . . Power Chain Reactions . | . . Missiles Intercepted . | . . Alert | -11 -10 ------- Run | Scr Mat Peak Influence 59 | 30 59 Initial 9 | . 9 Average 5 | 4 33 Maximum Alert Level . | . . Low Security (%) 100 | 100 100 Level 1 . | . . Level 2 . | . . Level 3 . | . . Level 4 . | . . Level 5 . | . . High Security . | . . Max Security . | . . Squads Dispatched 1 | . 1 Investigation . | . . Extermination . | . . Reinforcement 1 | . 1 Assault . | . . Garrison . | . . Intercept . | . . Construction Impeded . | . . Haulers Reinforced . | . . Stealth | -11 -10 --------- Run | Scr Mat Distress Signals . | . . Communications Jammed . | . . Distress Signals . | . . Times Spotted 12 | 7 5 Peak Tracking Total 22 | 22 2 Tactical Retreats 2 | 2 . Traps | -11 -10 ------- Run | Scr Mat Traps Triggered . | . . Indirectly . | . . Trap Hack Attempts . | . . Triggered . | . . Disarmed . | . . Reprogrammed . | . . Reused . | . . Traps Extracted . | . . Installed . | . . Triggered . | . . Machines | -11 -10 ---------- Run | Scr Mat Machines Disabled . | . . Max in Single Turn . | . . Machines Sabotaged . | . . Garrisons Compromised . | . . Overloaded Fab Kills . | . . Fab Network Shutdowns . | . . Hacking | -11 -10 --------- Run | Scr Mat Machines Accessed 3 | . 3 Terminals 3 | . 3 Fabricators . | . . Repair Stations . | . . Recycling Units . | . . Scanalyzers . | . . Garrison Access . | . . Total Hacks 4 | . 4 Successful 3 | . 3 Failed 1 | . 1 Catastrophic . | . . Database Lockouts . | . . Manual 4 | . 4 Terminals 4 | . 4 Fabricators . | . . Repair Stations . | . . Recycling Units . | . . Scanalyzers . | . . Garrison Access . | . . Terminal Hacks . | . . Fabricator Hacks . | . . Repair Station Hacks . | . . Recycling Unit Hacks . | . . Scanalyzer . | . . Garrison Access Hacks . | . . Unauthorized Hacks 3 | . 3 Terminals 3 | . 3 Botnet 3 | . 3 Fabricators . | . . Repair Stations . | . . Recycling Units . | . . Scanalyzers . | . . Garrison Access . | . . Data Cores Recovered . | . . Used . | . . Hacking Detections 2 | . 2 Full Trace Events . | . . Feedback Events . | . . Feedback Blocked . | . . Robot Schematics Acquired . | . . Robots Built . | . . Matter . | . . Time . | . . Total Robot Build Rating . | . . Part Schematics Acquired . | . . Parts Built . | . . Matter . | . . Time . | . . Total Part Build Rating . | . . Parts Repaired . | . . Time . | . . Parts Recycled . | . . Recycled Matter . | . . Retrieved Matter . | . . Retrieved Components . | . . Parts Scanalyzed . | . . Part Schematics Acquired . | . . Parts Damaged . | . . Bothacking | -11 -10 ------------ Run | Scr Mat Used RIF Installer . | . . Robots Hacked . | . . Non-combat . | . . Combat . | . . Robot Hacks Applied . | . . Relay Couplers Released . | . . Robots Rewired . | . . Allies Hacked . | . . Hacks Repelled . | . . Allies | -11 -10 -------- Run | Scr Mat Total Allies . | . . Largest Group . | . . Highest-Rated Group . | . . Highest-Rated Ally . | . . Total Orders . | . . Ally Attacks . | . . Total Damage . | . . Kills . | . . Allies Corrupted . | . . Allies Melted . | . . Intel | -11 -10 ------- Run | Scr Mat Robot Analysis Total . | . . Derelict Logs Recovered . | . . Drone Launches . | . . Drone Recoveries . | . . Exploration | -11 -10 ------------- Run | Scr Mat Turns Passed 7357 | 7168 189 Spaces Moved 4150 | 4063 87 Core 4 | 4 . Treads 2023 | 1936 87 Legs . | . . Wheels 2123 | 2123 . Hover . | . . Flight . | . . Fastest Speed 50 | 50 160 Average Speed 118 | 118 160 Slowest Speed 160 | 160 160 Overloaded Moves . | . . Propulsion Burnouts . | . . Robots Hopped . | . . Cave-ins Triggered . | . . Exploration Rate (%) 58 | 95 21 Regions Visited 1 Branch Regions . Pre-discovered Areas . | . . Known Exits Taken . | . . Unknown Exits Taken 1 | 1 . Scrap Searched . | . . Spaces Dug 15 | 15 . Terrain Destroyed 15 | 15 . Melee . | . . Projectile 15 | 15 . AOE . | . . Terrain Rammed . | . . Walls Destroyed . | . . Machines Disabled . | . . Actions | -11 -10 --------- Run | Scr Mat Total 6401 | 6286 115 Wait 2122 | 2120 2 Move 4149 | 4062 87 Hop . | . . Pick Up . | . . Fast Attach 14 | 13 1 Attach . | . . Detach . | . . Swap 2 | 2 . Drop 9 | 8 1 Fire 104 | 81 23 Melee . | . . Ram . | . . Kick . | . . Crush . | . . Escape Stasis . | . . Rewire . | . . Trap . | . . Miscellaneous 1 | . 1 Route ------- -11/Scrapyard -10/Materials (discovered 1 exit: [*Min]) History --------- Turn | Location | Event 5 | -11/Scrapyard | Discovered new exit (range 15) 14 | -11/Scrapyard | Upgraded with Utility slot (x1) 75 | -11/Scrapyard | Upgraded with Utility slot (x1) 78 | -11/Scrapyard | Upgraded with Utility slot (x1) 2430 | -11/Scrapyard | Assembled infested the area 2508 | -11/Scrapyard | Core integrity fell below 50% 7169 | -11/Scrapyard | Entered Materials 7169 | -10/Materials | Discovered new exit (range 7) 7170 | -10/Materials | Build established: Scavenger-Mutant 7259 | -10/Materials | Core integrity fell below 20% 7358 | -10/Materials | Destroyed by G-34 Mercenary with Small Laser Last Messages --------------- >>Trojan(Botnet) Trojan loaded successfully. Testing... Terminal linked with 2 systems. Awaiting botnet instructions. 07240_ Dropped Med. Laser. 07241_ Acquired Lgt. Cannon. 07255_ R-06 Scavenger destroyed. 07257_ T-07 Excavator is excavating. 07257_ G-34 Mercenary knocked back. 07265_ U-05 Engineer lays Concrete. 07275_ G-34 Mercenary destroyed. 07279_ Acquired 54 matter. 07284_ T-07 Excavator is excavating. 07285_ Used Protomatter to restore core integrity (+6, depleted) 07288_ T-07 Excavator is excavating. 07294_ R-06 Scavenger collects Aluminum Leg. 07307_ Connecting with Repair Station... 07327_ T-07 Excavator is excavating. 07344_ G-34 Mercenary knocked back. Map ----- +----------------------------------------------------+ | ????????????????????????????????????#?????#?#????# | | ?????????????????????????#??#?#??#?######????###?? | | ???????????????????????????#?##?##??#????####?#?#? | | ????????????????????????????????#?#??????##?###### | | ?????????????????????????#????#########???######?# | | ?????????????????????????#?########???#?#?##?##### | | ?????????????????????????#??#???#####??######??#?# | | ???????????????????????? ??#??##??########?####### | | ???????????????????????? ??#?#?###### ##?####### | | ?????????????????????? ??#???###### ########## | | ?????????????????##?#?##??###?#?##### #######?## | | ?????????????????? ?##?########### ########## | | ?????????????? ? ?? "?#?########### #########? | | ????????????##? ?""" ""### ## ########## | | ???????????#?#?? """ T"### """## ## ## | | ??????????#? ? ??""" ""### """# # ! ## | | ???????????? ""### """# # ## | | ??????????## ? ##### + < # ## | | ??????????#? ###?# """# # "T" ## | | ??????????#? ####/##### """# # ## | | ????????#??# ? ### ## """## #####+#### | | ????????? ? ?### ## ## ### | | ???????? ?? ?? ##? ############ ### | | ??????? ?? ?? ### ############ " ### | | ???????####?# ######/### ## T #### | | ?????????#?? ? "###gg @ """ """ ## " # | | ???????##?## ""### # "R """ ## + | | ?????????### ### # """ """ # # | | ????????##?# ? ""### + """ # == # " | | ?????????### ### # """ # == # " | | ?????????#?? ? ""### + #^ # " | | ?????????###? "### # ] # # | | ???????????## ###### ####/########+########### | | ????????? #? ##### =###u#### ####### | | ????????? ??+ ### #### "" [ ####### | | ??????????? # ### #### "T ######? | | ?????????? ?#? """ ### #### "" ####### | | ????????????#? """ ### #### """ ####### | | ????????????? """ ######## #### """ ####### | | ?????????????? =%+ [ """ ####### | | ?????????????? ######## #### ####?## | | ???????????????? ####### ################## | | ???????????????####+######## ################## | | ???????????????? ## #############?#?## | | ??????????????? """ ## # ################## | | ????????????????? ? """ ### ###################? | | ????????????????????""" ######################?# | | ????????????????? ? ###########?######?###?# | | ???????????????????#?#############?#############?? | | ??????????????????#? ? ####?###############??? | +----------------------------------------------------+ Best States ------------- Heat Dissipation 25 Energy Generation 10 Energy Capacity 125 Matter Stores 300 Matter Capacity 300 Sight Range 16 Terrain Scan Range 16 Terrain Scan Density 560 Evasion (%) 44 Recoil Reduction 1 Item Schematics ----------------- None Robot Schematics ------------------ None Fabricated ------------ Nothing Alien Tech Used ----------------- None Achievements -------------- Curiosity Killed The Cat Challenges ------------ None RPGLIKE | -11 -10 --------- Run | Scr Mat Levels Raised . | . . XP Earned 3225 | 3075 150 XP Spent 2840 | 2840 . Upgrades 7 | 7 . Utility Slot 3 | 3 . Terrain Scan Density 4 | 4 . Protomatter Created 2 | . 2 Integrity Restored 6 | . 6 Core 6 | . 6 Protomatter Decayed . | . . Game ------ Seed StealthRefineryFacilitator Manual? 0 Play Time 00:20:47 Cumulative 67.8 hours Start 2021.03.09 @ 10:20:43 End 2021.03.09 @ 10:40:08 Sessions 1 Manual Loads 0 Difficulty Rogue Special Mode Winter2019/RPGLIKE Game No. 22 Rogue 22 Adventurer 0 Explorer 0 Win Type - Total 4 Types 3/0/0/0/0/0/0/0/1 Lore% 38 Gallery% 51 Achievement% 53 Wizard Run 0 Options --------- ASCII 0 Keyboard 0 Movement Mouse Keybinds 0 Fullscreen 1 Font 18/SmallcapsGlow Map View 112x50 Tactical HUD 1 Map Filters NONE Filters NONE Steam 1 RUN: c75a22b8-44bd-4eb4-b478-3354e2019521